bitfinex/quotes_SOLUSD_20240729
["timestamp","ask_amount","ask_price","bid_price","bid_amount"]
[1722278708870,17.7731,186.46,186.42,0.0467697]
[1722278709221,17.7734,186.45,186.42,0.0467697]
[1722278709395,12.41,186.46,186.42,0.0467697]
[1722278709598,12.41,186.49,186.42,12.4567697]
[1722278709896,12.41,186.48,186.42,12.4567697]
[1722278710089,12.41,186.48,186.42,0.0467697]
[1722278710776,12.41,186.48,186.42,12.4567697]
[1722278710983,12.41,186.48,186.43,45.0]
[1722278711182,12.41,186.49,186.43,45.0]
[1722278711479,12.41,186.48,186.42,0.0467697]
[1722278711669,12.41,186.48,186.42,45.0467697]
[1722278711868,17.7725,186.48,186.42,45.0467697]
[1722278712109,17.7725,186.48,186.42,0.0467697]
[1722278713096,12.41,186.47,186.42,0.0467697]
[1722278713976,8.50674407,186.53,186.42,0.0467697]
[1722278713977,12.41,186.44,186.42,0.0467697]
[1722278716371,12.41,186.43,186.42,0.0467697]
[1722278716712,5.3631,186.46,186.42,0.0467697]
[1722278716713,12.41,186.44,186.42,0.0467697]
[1722278717192,12.41,186.46,186.42,0.0467697]
[1722278718185,12.41,186.47,186.42,0.0467697]
[1722278718894,12.41,186.48,186.42,0.0467697]
[1722278719094,12.41,186.47,186.42,0.0467697]
[1722278719472,12.41,186.48,186.42,0.0467697]
[1722278720094,12.41,186.5,186.43,12.41]
[1722278720677,12.41,186.49,186.42,12.4567697]
[1722278720878,12.41,186.49,186.43,45.0]
[1722278724380,7.41,186.49,186.43,45.0]
[1722278725792,8.50674407,186.53,186.44,12.41]
[1722278725793,2.07764407,186.53,186.44,12.41]
[1722278726004,12.41,186.51,186.44,12.41]
[1722278726870,18.58565867,186.55,186.46,12.41]
[1722278727080,12.41,186.53,186.47,45.0]
[1722278727489,12.41,186.52,186.45,12.58]
[1722278728091,12.41,186.51,186.45,0.17]
[1722278728285,12.41,186.51,186.45,45.0]
[1722278728496,12.41,186.49,186.44,21.8971]
[1722278728712,12.41,186.48,186.44,21.8971]
[1722278729017,12.41,186.48,186.44,15.5542]
[1722278729312,12.41,186.49,186.44,15.5542]
[1722278729491,12.41,186.49,186.42,12.4567697]
[1722278729699,12.41,186.48,186.43,45.0]
[1722278729997,12.41,186.48,186.42,45.0467697]
[1722278733715,12.41,186.48,186.42,0.0467697]
[1722278734102,12.41,186.44,186.42,0.0467697]
[1722278736020,12.41,186.43,186.42,0.0467697]
[1722278738798,17.7739,186.43,186.42,0.0467697]
[1722278740288,5.3642,186.42,186.32,8.06257217]
[1722278740495,13.4072,186.47,186.33,45.0]
[1722278740496,12.41,186.39,186.33,45.0]
[1722278740699,12.41,186.39,186.32,45.0]
[1722278741798,12.41,186.38,186.32,45.0]
[1722278742023,12.41,186.38,186.31,12.41]
[1722278742317,12.41,186.38,186.3,15.2395]
[1722278742318,12.41,186.35,186.3,15.2395]
[1722278742524,12.41,186.35,186.28,12.41]
[1722278743021,12.41,186.35,186.26,6.652]
[1722278743202,12.41,186.36,186.29,12.41]
[1722278744121,12.41,186.35,186.28,12.41]
[1722278746436,12.41,186.34,186.27,12.41]
[1722278746754,12.41,186.34,186.27,13.48356979]
[1722278747305,12.41,186.34,186.27,12.41]
[1722278747505,12.41,186.31,186.24,0.7675215]
[1722278747730,12.41,186.31,186.24,13.1775215]
[1722278747930,12.41,186.31,186.25,1.07367794]
[1722278748322,12.41,186.32,186.25,1.07367794]
[1722278748520,12.41,186.32,186.25,13.48367794]
[1722278748732,12.41,186.34,186.27,12.41]
[1722278749633,12.41,186.33,186.26,12.41]
[1722278749833,12.41,186.33,186.27,45.0]
[1722278750130,12.41,186.28,186.24,0.7675215]
[1722278750629,12.41,186.27,186.24,0.7675215]
[1722278750843,12.41,186.28,186.24,0.7675215]
[1722278751607,5.3668,186.33,186.24,13.1775215]
[1722278751813,12.41,186.32,186.25,12.41]
[1722278752234,16.2182,186.35,186.24,0.7675215]
[1722278752439,12.41,186.33,186.26,12.41]
[1722278752614,12.41,186.34,186.27,57.41]
[1722278752816,28.6282,186.35,186.28,12.41]
[1722278753107,12.41,186.34,186.27,57.41]
[1722278754320,31.04803103,186.39,186.25,0.17]
[1722278754321,17.7768,186.33,186.25,0.17]
[1722278754512,17.7768,186.33,186.25,57.58]
[1722278754715,12.41,186.32,186.25,57.58]
[1722278756120,12.41,186.33,186.25,57.58]
[1722278756315,12.41,186.33,186.26,12.41]
[1722278756635,12.41,186.34,186.27,45.17]
[1722278757320,12.41,186.33,186.27,45.0]
[1722278757516,12.41,186.32,186.27,45.0]
[1722278757723,12.41,186.32,186.26,45.0]
[1722278758220,12.41,186.32,186.25,12.41]
[1722278758426,12.41,186.31,186.24,19.2418215]
[1722278758627,12.41,186.31,186.25,45.0]
[1722278758820,12.41,186.31,186.24,45.7675215]
[1722278759020,12.41,186.31,186.24,46.84120489]
[1722278759638,12.41,186.31,186.24,45.7675215]
[1722278760012,12.41,186.31,186.24,58.1775215]
[1722278761842,12.41,186.33,186.25,12.41]
[1722278762138,12.41,186.33,186.26,57.41]
[1722278762439,12.41,186.34,186.27,12.41]
[1722278762836,12.41,186.35,186.28,57.41]
[1722278763420,12.41,186.34,186.28,45.0]
[1722278763747,5.366,186.36,186.28,45.0]
[1722278763922,5.3654,186.38,186.28,45.0]
[1722278764123,18.63803103,186.39,186.28,45.0]
[1722278764822,5.3662,186.36,186.28,45.0]
[1722278765038,18.63803103,186.39,186.28,45.0]
[1722278765237,16.4842,186.39,186.29,20.17]
[1722278765436,13.4084,186.45,186.3,45.0]
[1722278765437,5.3641,186.43,186.3,45.0]
[1722278765642,15.6665,186.44,186.31,0.17]
[1722278765838,15.6665,186.44,186.32,20.0]
[1722278766151,15.6665,186.44,186.34,21.5686]
[1722278766348,15.6665,186.44,186.35,65.17]
[1722278766733,15.6665,186.44,186.36,1.07295632]
[1722278766947,5.3627,186.48,186.37,1.242887]
[1722278767138,2.17759486,186.48,186.37,0.17]
[1722278767450,15.5416,186.49,186.37,20.0]
[1722278767641,15.5416,186.49,186.38,65.17]
[1722278767845,15.5416,186.49,186.39,45.0]
[1722278768152,15.5416,186.49,186.36,0.17]
[1722278768328,20.9038,186.49,186.36,0.17]
[1722278768851,15.5416,186.49,186.37,20.0]
[1722278769045,15.5416,186.49,186.38,65.17]
[1722278769828,15.5416,186.49,186.39,1.07266356]
[1722278770131,5.3616,186.52,186.4,1.24256926]
[1722278770333,5.3616,186.52,186.38,86.24256926]
[1722278770548,5.3616,186.51,186.41,0.17]
[1722278770753,5.3616,186.51,186.39,20.0]
[1722278771056,279.6309,186.54,186.4,65.17]
[1722278771547,5.3616,186.52,186.4,65.17]
[1722278771755,23.88099946,186.54,186.4,66.24257097]
[1722278771931,5.3611,186.53,186.4,66.24257097]
[1722278772353,5.3614,186.52,186.4,66.24257097]
[1722278773155,5.3616,186.51,186.4,65.17]
[1722278773651,5.3619,186.5,186.4,65.17]
[1722278773952,37.28299946,186.54,186.4,65.17]
[1722278774144,5.3624,186.49,186.4,65.17]
[1722278775465,5.3629,186.47,186.4,65.0]
[1722278775634,37.28299946,186.54,186.4,65.0]
[1722278775830,37.28299946,186.54,186.41,0.17]
[1722278776156,5.3613,186.52,186.41,0.17]
[1722278776331,23.88099946,186.54,186.41,0.17]
[1722278776652,5.3613,186.52,186.41,0.17]
[1722278776960,5.3616,186.51,186.41,0.17]
[1722278778253,23.88099946,186.54,186.41,0.17]
[1722278778936,5.3616,186.52,186.41,0.17]
[1722278779639,5.3616,186.52,186.41,21.9763]
[1722278779839,5.3616,186.52,186.42,45.0]
[1722278780151,5.3616,186.52,186.43,0.17]
[1722278781329,5.3617,186.51,186.43,0.17]
[1722278781758,5.3619,186.5,186.43,0.17]
[1722278784645,5.3623,186.49,186.42,45.0]
[1722278784852,5.3619,186.5,186.42,45.0]
[1722278785342,5.3623,186.49,186.42,45.0]
[1722278786640,5.3619,186.51,186.42,45.0]
[1722278788553,5.3615,186.52,186.42,45.0]
[1722278788863,17.69169946,186.54,186.43,0.17]
[1722278789170,2.15009946,186.54,186.43,0.17]
[1722278789346,5.3608,186.54,186.43,0.17]
[1722278789756,5.3611,186.53,186.43,0.17]
[1722278791555,5.3607,186.54,186.43,0.17]
[1722278791859,5.3607,186.54,186.43,20.17]
[1722278792059,5.3607,186.54,186.44,46.0723986]
[1722278792241,5.3607,186.54,186.45,0.17]
[1722278792442,5.3607,186.54,186.45,46.24239881]
[1722278792749,5.3607,186.54,186.45,0.17]
[1722278792954,15.0127,186.58,186.46,45.0]
[1722278793172,15.0127,186.58,186.47,1.24231823]
[1722278793558,15.0127,186.58,186.48,23.0758]
[1722278793754,5.3596,186.58,186.49,46.24224172]
[1722278793955,2.12626857,186.59,186.49,45.17]
[1722278794162,5.3593,186.59,186.49,45.17]
[1722278794366,5.3599,186.57,186.49,45.17]
[1722278794570,29.6562,186.63,186.49,45.17]
[1722278794571,5.3602,186.56,186.49,45.17]
[1722278794872,5.3606,186.55,186.49,45.17]
[1722278795368,5.3606,186.55,186.49,45.0]
[1722278795976,5.3608,186.54,186.48,23.0758]
[1722278796483,5.3605,186.55,186.48,23.0758]
[1722278797067,5.3608,186.54,186.48,23.0758]
[1722278797949,5.361,186.53,186.43,21.9849]
[1722278798350,66.56692463,186.59,186.43,21.9849]
[1722278798556,0.17,186.58,186.43,21.9849]
[1722278798757,55.13662463,186.58,186.43,21.9849]
[1722278798957,5.3616,186.52,186.43,21.9849]
[1722278799348,5.3616,186.52,186.44,45.17]
[1722278799549,16.5159,186.56,186.43,21.9849]
[1722278799754,5.3621,186.5,186.43,21.9849]
[1722278800366,21.94282463,186.56,186.43,21.9849]
[1722278800668,5.3605,186.55,186.43,23.05729878]
[1722278800969,5.3605,186.55,186.44,20.17]
[1722278801177,28.9372,186.6,186.44,20.17]
[1722278801178,7.49560126,186.56,186.45,45.0]
[1722278801472,5.3606,186.55,186.46,0.17]
[1722278801975,5.3606,186.55,186.45,0.17]
[1722278802575,12.44,186.54,186.48,12.44]
[1722278802974,12.44,186.56,186.49,58.68219918]
[1722278803154,12.44,186.56,186.49,57.61]
[1722278803354,12.44,186.55,186.49,45.17]
[1722278804053,17.8005,186.55,186.49,45.17]
[1722278804777,17.8005,186.55,186.47,12.44]
[1722278804967,5.3602,186.56,186.49,12.44]
[1722278805157,17.8002,186.56,186.5,45.0]
[1722278805356,12.44,186.55,186.48,57.61]
[1722278805665,12.44,186.55,186.49,0.17]
[1722278807373,17.6603444,186.6,186.47,12.44]
[1722278807374,12.44,186.54,186.47,12.44]
[1722278807553,33.8003444,186.6,186.47,12.44]
[1722278807554,12.44,186.53,186.47,12.44]
[1722278807759,12.44,186.54,186.48,45.0]
[1722278808370,12.44,186.55,186.48,57.44]
[1722278809753,17.8002,186.56,186.49,12.44]
[1722278809955,17.8002,186.56,186.5,46.07217959]
[1722278810162,12.44,186.56,186.5,45.0]
[1722278810377,17.8,186.57,186.51,1.07217269]
[1722278810965,17.8003,186.56,186.5,45.0]
[1722278811589,17.8005,186.55,186.5,45.0]
[1722278811758,5.3608,186.54,186.49,45.0]
[1722278812961,17.8005,186.55,186.49,45.0]
[1722278813561,12.44,186.54,186.49,45.0]
[1722278813775,12.44,186.54,186.48,45.17]
[1722278815286,17.6603444,186.6,186.51,12.44]
[1722278815481,12.44,186.58,186.52,45.0]
[1722278816873,12.44,186.59,186.53,0.17]
[1722278817465,12.44,186.61,186.54,12.44]
[1722278817686,12.44,186.61,186.55,1.07190331]
[1722278817994,12.44,186.61,186.55,46.07190331]
[1722278818368,2.07376876,186.63,186.55,57.44]
[1722278818680,12.44,186.61,186.55,45.0]
[1722278819487,12.44,186.63,186.56,12.44]
[1722278820184,12.44,186.63,186.57,45.17]
[1722278820383,12.44,186.62,186.57,45.17]
[1722278821485,17.7981,186.64,186.57,57.61]
[1722278821678,12.44,186.66,186.6,12.44]
[1722278821880,12.44,186.66,186.61,1.07163872]
[1722278822686,5.3573,186.67,186.61,1.07163872]
[1722278822687,17.7973,186.67,186.61,1.07163872]
[1722278822864,17.7973,186.66,186.6,12.44]
[1722278824371,17.7973,186.66,186.59,12.44]
[1722278824372,12.44,186.65,186.59,12.44]
[1722278824571,12.44,186.65,186.6,45.0]
[1722278824785,12.44,186.66,186.6,45.0]
[1722278825791,12.44,186.67,186.6,57.44]
[1722278825976,12.44,186.68,186.61,13.51160821]
[1722278826482,5.3567,186.69,186.62,45.17]
[1722278826483,17.7965,186.69,186.62,45.17]
[1722278827092,5.3568,186.68,186.62,45.17]
[1722278827293,12.44,186.66,186.59,35.1696]
[1722278827588,12.44,186.65,186.6,45.0]
[1722278827785,12.44,186.66,186.6,45.0]
[1722278829171,12.44,186.65,186.6,45.0]
[1722278830074,12.44,186.64,186.6,45.0]
[1722278832081,12.44,186.67,186.61,1.24156251]
[1722278832284,12.44,186.68,186.61,13.68156251]
[1722278832476,12.44,186.68,186.61,12.61]
[1722278832675,12.44,186.68,186.62,45.0]
[1722278832876,12.44,186.67,186.62,45.0]
[1722278833273,12.44,186.69,186.62,57.44]
[1722278833479,12.44,186.68,186.62,45.0]
[1722278833678,12.44,186.68,186.62,57.44]
[1722278834090,12.44,186.68,186.62,45.0]
[1722278834699,12.44,186.67,186.62,45.0]
[1722278835002,12.44,186.67,186.61,57.61]
[1722278835188,12.44,186.66,186.61,45.17]
[1722278836809,12.44,186.67,186.61,45.17]
[1722278837298,12.44,186.68,186.61,57.61]
[1722278839306,12.44,186.66,186.61,45.17]
[1722278839498,12.44,186.66,186.6,45.0]
[1722278840500,12.44,186.63,186.56,12.44]
[1722278840706,12.44,186.61,186.55,21.2755]
[1722278840912,12.44,186.6,186.55,21.2755]
[1722278841082,12.44,186.61,186.55,33.7155]
[1722278841287,15.6652,186.67,186.57,12.44]
[1722278841288,12.44,186.63,186.57,12.44]
[1722278841604,12.44,186.64,186.57,12.44]
[1722278842307,12.44,186.64,186.58,45.17]
[1722278843014,15.6652,186.67,186.61,12.44]
[1722278843015,12.44,186.67,186.61,12.44]
[1722278843183,15.679,186.72,186.62,57.44]
[1722278843184,12.44,186.69,186.62,57.44]
[1722278843386,12.44,186.69,186.63,45.0]
[1722278846091,21.20952463,186.76,186.64,13.51143638]
[1722278846298,12.44,186.72,186.65,58.68129689]
[1722278846611,12.44,186.72,186.65,57.61]
[1722278846828,12.44,186.71,186.65,45.17]
[1722278847315,12.44,186.69,186.62,34.6158]
[1722278847620,12.44,186.64,186.57,22.1758]
[1722278847789,12.44,186.63,186.58,45.0]
[1722278847997,12.44,186.62,186.57,22.1758]
[1722278848202,12.44,186.63,186.57,22.1758]
[1722278848421,12.44,186.61,186.57,22.1758]
[1722278848634,12.44,186.62,186.57,22.1758]
[1722278848819,12.44,186.61,186.55,12.44]
[1722278849005,12.44,186.62,186.56,12.44]
[1722278850198,12.44,186.62,186.55,12.44]
[1722278850400,12.44,186.61,186.54,12.44]
[1722278851422,5.3579,186.64,186.55,12.44]
[1722278851630,5.3579,186.64,186.57,12.44]
[1722278851631,12.44,186.64,186.57,12.44]
[1722278852138,12.44,186.64,186.58,45.0]
[1722278852303,12.44,186.63,186.58,45.0]
[1722278852702,12.44,186.62,186.58,45.0]
[1722278853002,12.44,186.62,186.57,45.0]
[1722278853303,12.44,186.61,186.56,0.17]
[1722278853522,12.44,186.61,186.55,45.17]
[1722278854928,12.44,186.61,186.55,45.0]
[1722278855130,12.44,186.61,186.54,57.44]
[1722278855314,12.44,186.6,186.54,45.0]
[1722278855718,12.44,186.6,186.54,57.44]
[1722278856320,12.44,186.61,186.54,57.44]
[1722278857015,12.44,186.66,186.57,12.44]
[1722278857016,5.3575,186.66,186.57,12.44]
[1722278857238,12.44,186.63,186.58,45.0]
[1722278857439,12.44,186.64,186.58,45.0]
[1722278857734,12.44,186.63,186.57,12.44]
[1722278857946,12.44,186.64,186.58,45.0]
[1722278859143,12.44,186.63,186.58,45.0]
[1722278860839,12.44,186.63,186.56,12.61]
[1722278861017,12.44,186.63,186.57,45.0]
[1722278861524,12.44,186.62,186.57,45.0]
[1722278861727,12.44,186.62,186.56,57.61]
[1722278863120,12.44,186.61,186.54,12.44]
[1722278863318,12.44,186.57,186.51,12.44]
[1722278863841,12.44,186.54,186.45,8.05476531]
[1722278864046,12.44,186.53,186.46,12.44]
[1722278864365,12.44,186.51,186.45,12.44]
[1722278864553,15.7368,186.56,186.44,23.1228]
[1722278864713,15.7368,186.56,186.43,12.44]
[1722278864714,12.44,186.49,186.43,12.44]
[1722278864918,12.44,186.49,186.42,12.44]
[1722278865120,5.3617,186.51,186.4,22.7162]
[1722278865337,5.3613,186.52,186.4,22.7162]
[1722278865849,24.9,186.54,186.41,20.0]
[1722278866347,5.3613,186.53,186.41,20.0]
[1722278866543,24.9,186.54,186.4,22.7162]
[1722278867646,5.3617,186.51,186.4,22.7162]
[1722278867851,5.3617,186.51,186.41,45.17]
[1722278868142,5.3612,186.53,186.41,45.17]
[1722278868743,5.3613,186.52,186.41,45.17]
[1722278869121,6.6661,186.55,186.41,65.17]
[1722278869440,5.3617,186.51,186.41,45.17]
[1722278869655,5.362,186.5,186.41,45.17]
[1722278869956,41.4357,186.48,186.35,21.7203]
[1722278870114,5.3638,186.44,186.35,21.7203]
[1722278870317,41.4357,186.48,186.35,21.7203]
[1722278870745,5.3633,186.45,186.35,21.7203]
[1722278870920,5.3636,186.44,186.35,21.7203]
[1722278871143,5.364,186.43,186.35,21.7203]
[1722278871321,5.3635,186.45,186.35,21.7203]
[1722278872047,5.3637,186.44,186.35,21.7203]
[1722278873326,5.3631,186.46,186.36,45.0]
[1722278873942,5.3633,186.45,186.36,45.0]
[1722278874648,5.3629,186.47,186.36,45.0]
[1722278874823,5.3632,186.46,186.36,45.0]
[1722278875949,5.3632,186.46,186.37,0.17]
[1722278876150,43.56319424,186.48,186.37,0.17]
[1722278876334,2.12749424,186.48,186.37,0.17]
[1722278876652,5.363,186.47,186.37,0.17]
[1722278877229,5.3632,186.46,186.37,0.17]
[1722278877929,18.1166058,186.52,186.39,20.0]
[1722278878156,5.362,186.5,186.4,46.24258743]
[1722278878357,5.29064545,186.5,186.4,45.17]
[1722278880268,5.3622,186.49,186.4,45.17]
[1722278880679,5.3619,186.5,186.4,45.17]
[1722278882456,18.1166058,186.52,186.4,45.17]
[1722278882659,5.3625,186.48,186.4,45.17]
[1722278882986,24.9,186.5,186.35,21.7203]
[1722278883170,5.3631,186.46,186.36,20.0]
[1722278883353,5.3634,186.45,186.36,20.0]
[1722278883675,5.3634,186.45,186.35,21.7203]
[1722278884395,5.3627,186.48,186.36,45.17]
[1722278884678,5.3629,186.47,186.36,45.17]
[1722278885252,12.45,186.43,186.37,12.45]
[1722278885579,12.45,186.43,186.35,21.7203]
[1722278885580,12.45,186.4,186.35,21.7203]
[1722278885789,12.45,186.38,186.31,12.45]
[1722278885957,12.45,186.38,186.32,12.45]
[1722278887161,12.45,186.38,186.33,12.45]
[1722278887360,15.4677,186.44,186.3,23.78505481]
[1722278887556,15.4677,186.44,186.31,21.07303831]
[1722278887763,5.364,186.43,186.3,23.78493831]
[1722278887963,5.364,186.43,186.31,20.0]
[1722278888186,5.364,186.43,186.32,45.17]
[1722278889058,15.4677,186.44,186.32,45.17]
[1722278890088,5.3643,186.42,186.32,45.17]
[1722278890463,5.3639,186.43,186.32,45.17]
[1722278890687,20.8313,186.44,186.32,45.17]
[1722278891881,5.3639,186.43,186.32,45.17]
[1722278892274,5.3639,186.43,186.33,1.07303778]
[1722278892574,5.3639,186.43,186.34,0.17]
[1722278892889,5.3639,186.43,186.34,1.24303622]
[1722278893075,5.3643,186.42,186.34,0.17]
[1722278893381,5.3643,186.42,186.33,0.17]
[1722278894271,17.5958486,186.44,186.33,0.17]
[1722278894272,5.3646,186.41,186.33,0.17]
[1722278895482,5.3642,186.42,186.33,0.17]
[1722278895871,5.3639,186.43,186.33,1.2431569]
[1722278896183,5.3642,186.42,186.33,0.17]
[1722278896765,5.3639,186.43,186.33,0.17]
[1722278897672,2.1281486,186.44,186.33,0.17]
[1722278897982,2.1281486,186.44,186.32,45.0]
[1722278897983,24.92,186.41,186.3,22.7119]
[1722278898186,5.3651,186.39,186.3,22.7119]
[1722278898890,5.3653,186.38,186.3,22.7119]
[1722278899466,5.3651,186.39,186.3,22.7119]
[1722278899678,5.3651,186.39,186.29,0.17]
[1722278900601,5.3651,186.39,186.28,45.17]
[1722278901672,16.0894,186.4,186.28,45.17]
[1722278901673,21.4542,186.4,186.28,45.17]
[1722278901992,16.0894,186.4,186.28,45.17]
[1722278902177,16.0894,186.4,186.29,1.07331126]
[1722278902374,5.364,186.43,186.3,1.24319272]
[1722278902878,5.3643,186.42,186.3,46.24319272]
[1722278903262,5.3643,186.42,186.3,45.17]
[1722278903475,5.3646,186.41,186.3,45.17]
[1722278903989,24.92,186.44,186.3,0.17]
[1722278904181,45.0,186.43,186.3,45.17]
[1722278904691,5.3644,186.42,186.31,1.07323147]
[1722278905876,5.3644,186.42,186.32,0.17]
[1722278906289,5.3648,186.4,186.32,0.17]
[1722278906485,5.3648,186.4,186.31,0.17]
[1722278906869,5.3645,186.41,186.31,0.17]
[1722278907070,5.3647,186.41,186.31,0.17]
[1722278907261,5.3652,186.39,186.31,0.17]
[1722278907492,41.06,186.44,186.26,21.6928]
[1722278907493,24.92,186.41,186.26,21.6928]
[1722278907669,5.3656,186.37,186.26,21.6928]
[1722278908787,5.3656,186.37,186.27,20.0]
[1722278909190,29.5508,186.42,186.28,12.47]
[1722278909191,12.47,186.34,186.28,12.47]
[1722278910078,12.47,186.35,186.29,12.47]
[1722278910394,12.47,186.35,186.3,0.17]
[1722278910795,12.47,186.35,186.27,20.0]
[1722278910796,12.47,186.35,186.29,57.64]
[1722278911801,12.47,186.35,186.3,1.07330886]
[1722278912003,12.47,186.36,186.3,1.07330886]
[1722278912368,12.47,186.36,186.3,13.54330886]
[1722278913498,12.47,186.36,186.3,12.47]
[1722278914202,12.47,186.36,186.29,57.64]
[1722278914508,12.47,186.36,186.3,1.07329313]
[1722278914711,12.47,186.36,186.29,57.64]
[1722278915602,12.47,186.35,186.29,45.17]
[1722278915811,12.47,186.35,186.3,1.07329771]
[1722278916306,12.47,186.34,186.27,32.47]
[1722278917200,12.47,186.34,186.28,1.07343421]
[1722278917380,12.47,186.35,186.29,0.17]
[1722278917977,12.47,186.34,186.29,0.17]
[1722278918179,12.47,186.33,186.26,34.1628]
[1722278918501,12.47,186.33,186.27,0.17]
[1722278918676,12.47,186.33,186.27,12.64]
[1722278919001,12.47,186.32,186.27,0.17]
[1722278923504,12.47,186.31,186.27,0.17]
[1722278923712,12.47,186.31,186.26,21.6928]
[1722278924293,12.47,186.3,186.25,0.17]
[1722278924499,12.47,186.3,186.26,0.17]
[1722278924892,12.47,186.3,186.25,0.17]
[1722278926214,12.47,186.31,186.25,0.17]
[1722278926707,12.47,186.32,186.26,12.47]
[1722278926913,12.47,186.32,186.27,1.07352574]
[1722278927509,12.47,186.33,186.27,1.07352574]
[1722278928820,12.47,186.33,186.28,0.17]
[1722278929119,12.47,186.32,186.28,0.17]
[1722278929291,12.47,186.32,186.25,12.47]
[1722278929490,12.47,186.33,186.26,57.64]
[1722278929699,12.47,186.33,186.27,1.07346216]
[1722278930705,15.84,186.38,186.26,57.64]
[1722278930911,12.47,186.33,186.26,57.64]
[1722278933211,2.16213547,186.4,186.28,12.47]
[1722278933411,12.47,186.36,186.29,57.64]
[1722278933601,44.7701,186.44,186.27,34.7436]
[1722278933602,12.47,186.34,186.27,34.7436]
[1722278933919,12.47,186.33,186.27,22.2736]
[1722278935986,12.47,186.35,186.28,12.64]
[1722278936385,12.47,186.36,186.29,13.54335543]
[1722278936590,12.47,186.37,186.3,1.24328124]
[1722278936789,12.47,186.36,186.3,1.24328124]
[1722278937817,12.47,186.36,186.3,45.17]
[1722278939321,12.47,186.36,186.3,57.64]
[1722278941198,12.47,186.38,186.31,13.54317939]
[1722278941422,12.47,186.38,186.32,45.17]
[1722278942126,12.47,186.38,186.32,0.17]
[1722278943112,12.47,186.37,186.32,0.17]
[1722278943431,12.47,186.36,186.28,12.47]
[1722278943608,12.47,186.36,186.29,57.64]
[1722278944108,12.47,186.36,186.29,45.17]
[1722278944312,12.47,186.34,186.3,45.0]
[1722278944513,12.47,186.34,186.29,0.17]
[1722278944721,12.47,186.35,186.29,0.17]
[1722278946211,12.47,186.32,186.27,22.2736]
[1722278946412,12.47,186.32,186.27,15.8729]
[1722278948039,5.3665,186.35,186.27,15.8729]
[1722278948340,12.47,186.32,186.27,15.8729]
[1722278948918,12.47,186.32,186.26,0.17]
[1722278949120,12.47,186.3,186.24,0.7675215]
[1722278949322,12.47,186.31,186.24,13.2375215]
[1722278950427,12.47,186.31,186.25,45.17]
[1722278952337,12.47,186.31,186.24,13.2375215]
[1722278953222,12.47,186.28,186.24,0.7675215]
[1722278954823,12.47,186.29,186.24,0.7675215]